fUST/lending_fUST_20240407
["ID","MTS","AMOUNT","RATE_DAILY","PERIOD"]
[321720624,1712455751201,-507.37042411,0.00023688,2]
[321720625,1712455751231,-509.02631663,0.00023688,2]
[321720626,1712455751261,-581.40466416,0.00023688,2]
[321720627,1712455751293,-518.66961966,0.00023688,2]
[321720628,1712455751326,-502.09448682,0.00023688,2]
[321720629,1712455751358,-519.77069824,0.00023688,2]
[321720630,1712455751389,-506.22592577,0.00023688,2]
[321720631,1712455751561,-503.92748318,0.00023688,2]
[321720632,1712455751590,-151.0,0.00023688,2]
[321720633,1712455751617,-377.54189351,0.00023689,2]
[321720634,1712455751644,-235.7768867,0.00023689,2]
[321720635,1712455751671,-180.03629793,0.00023689,2]
[321720636,1712455751698,-500.0,0.00023689,2]
[321720637,1712455751724,-500.0,0.00023689,2]
[321720638,1712455751751,-309.45155405,0.0002369,2]
[321720639,1712455755790,-959.2,0.00023687,2]
[321720640,1712455755820,-340.86889842,0.00023689,2]
[321720641,1712455755848,-31851.58817243,0.0002369,2]
[321720642,1712455755873,-309.35993166,0.00023743,2]
[321720643,1712455755900,-310.86046856,0.00023743,2]
[321720644,1712455755926,-672.5028384,0.00023743,2]
[321720645,1712455755951,-332.91742688,0.00023743,2]
[321720646,1712455755976,-184.65236313,0.00023846,2]
[321720647,1712455756003,-685.74947039,0.00023846,2]
[321720648,1712455756027,-166.82000829,0.00023846,2]
[321720649,1712455756052,-1804.62664909,0.00023846,2]
[321720650,1712455756079,-946.06297937,0.00023846,2]
[321720651,1712455756105,-1269.17204717,0.00023846,2]
[321720652,1712455756130,-298.13400347,0.00023847,2]
[321720653,1712455756155,-305.17230447,0.00023847,2]
[321720654,1712455756180,-262.50056538,0.00023847,2]
[321720655,1712455756206,-274.92756478,0.00023849,2]
[321720656,1712455756230,-212.77914189,0.00023849,2]
[321720657,1712455756256,-484.43702947,0.00023849,2]
[321720658,1712455756282,-283.79016332,0.00023849,2]
[321720659,1712455756307,-1125.33561742,0.0002385,2]
[321720660,1712455756335,-245.6778636,0.00023961,2]
[321720661,1712455756362,-500.0,0.00023961,2]
[321720662,1712455756387,-500.0,0.00023961,2]
[321720663,1712455756413,-502.4170048,0.00023961,2]
[321720664,1712455756439,-500.0,0.00023961,2]
[321720665,1712455756466,-537.98692291,0.00023961,2]
[321720666,1712455756493,-500.0,0.00023961,2]
[321720667,1712455756518,-1352.47,0.00023961,2]
[321720668,1712455756544,-500.0,0.00023961,2]
[321720669,1712455756570,-500.0,0.00023961,2]
[321720670,1712455756597,-500.0,0.00023961,2]
[321720671,1712455756624,-879.62,0.00023961,2]
[321720672,1712455756650,-500.0,0.00023961,2]
[321720673,1712455756676,-174.98291592,0.00023961,2]
[321720674,1712455756701,-350.7232662,0.00023961,2]
[321720675,1712455761317,-261.61608953,0.00023844,2]
[321720676,1712455761343,-232.99617989,0.00023844,2]
[321720677,1712455761368,-1560.80563259,0.00023845,2]
[321720678,1712455761393,-454.68706794,0.00023845,2]
[321720679,1712455761419,-149.2767338,0.00023961,2]
[321720680,1712455761446,-4559.95,0.00023961,2]
[321720681,1712455761474,-506.64685489,0.00023961,2]
[321720682,1712455761499,-1169.8,0.00023961,2]
[321720683,1712455761527,-245.26271346,0.00023961,2]
[321720684,1712455761556,-500.0,0.00023961,2]
[321720685,1712455761584,-500.0,0.00023961,2]
[321720686,1712455761616,-500.0,0.00023961,2]
[321720687,1712455761643,-738.64,0.00023961,2]
[321720688,1712455761671,-500.0,0.00023961,2]
[321720689,1712455761698,-1180.68,0.00023961,2]
[321720690,1712455761725,-500.0,0.00023961,2]
[321720691,1712455761752,-3386.56,0.00023961,2]
[321720692,1712455761779,-955.26,0.00023961,2]
[321720693,1712455761806,-1121.62,0.00023961,2]
[321720694,1712455761831,-959.2,0.00023961,2]
[321720695,1712455761860,-507.33374192,0.00023962,2]
[321720696,1712455761886,-500.0,0.00023962,2]
[321720697,1712455761913,-153.0,0.00024,2]
[321720698,1712455762063,-202.5995394,0.00024,2]
[321720699,1712455762092,-202.5995394,0.00024,2]
[321720700,1712455762118,-202.5995394,0.00024,2]
[321720701,1712455762143,-405.0523215,0.00024,2]
[321720702,1712455762242,314.13398796,0.00021316,2]
[321720703,1712455765161,-2135.37394092,0.00021317,2]
[321720704,1712455765275,-43.57906002,0.00021317,2]
[321720705,1712455787724,-314.13398796,0.00021316,2]
[321720706,1712455787757,-155.00155002,0.00021316,2]
[321720707,1712455787787,-11530.86446202,0.00021316,2]
[321720708,1712455787825,-415.29739511,0.00021316,2]
[321720709,1712455787857,-2178.95300094,0.0002181,2]
[321720710,1712455802555,-219.008716,0.00023167,2]
[321720711,1712455802582,-500.0,0.00023686,2]
[321720712,1712455802608,-300.0,0.00023686,2]
[321720713,1712455802636,-300.0,0.00023686,2]
[321720714,1712455802663,-500.0,0.00023687,2]
[321720715,1712455802688,-1239.77,0.00023687,2]
[321720716,1712455802716,-228.223363,0.00023687,2]
[321720717,1712455802744,-806.32,0.00023687,2]
[321720718,1712455802771,-864.14,0.00023687,2]
[321720719,1712455802798,-395.82727765,0.00023687,2]
[321720720,1712455802825,-500.0,0.0002396,2]
[321720721,1712455802970,-500.0,0.00023961,2]
[321720722,1712455803002,-1239.77,0.00023961,2]
[321720723,1712455803032,-806.32,0.00023961,2]
[321720724,1712455803058,-864.14,0.00023961,2]
[321720725,1712455803684,242.92114235,0.00021316,2]
[321720726,1712455807139,-2135.37394092,0.0002181,2]
[321720727,1712455807311,-43.57906002,0.0002181,2]
[321720728,1712455807598,228.49933246,0.00021316,2]
[321720729,1712455825272,-2135.37394092,0.0002181,2]
[321720730,1712455825382,-43.57906002,0.0002181,2]
[321720852,1712455849491,-1547.2299685,0.0002255,2]
[321720853,1712455849501,-167.563537,0.00023218,2]
[321720854,1712455849510,-500.0,0.00023687,2]
[321720855,1712455849520,-500.0,0.00023961,2]
[321720856,1712455849529,-230.26002179,0.0002412,2]
[321720857,1712455849538,-296.41486429,0.00024121,2]
[321720858,1712455849547,-407.56553421,0.00024121,2]
[321720859,1712455849557,-153.0,0.000242,2]
[321720860,1712455849566,-155.3478225,0.000242,2]
[321720861,1712455849576,-153.0,0.000242,2]
[321720862,1712455849585,-291.05930283,0.00024232,2]
[321720863,1712455849644,-499.32893817,0.00024232,2]
[321720864,1712455849656,-355.33,0.00024232,2]
[321720865,1712455849703,-2135.37394092,0.0002181,2]
[321720866,1712455849734,-43.57906002,0.0002181,2]
[321720867,1712455849752,-156.91341191,0.00024232,2]
[321720868,1712455849762,-101.74798187,0.00024233,2]
[321720869,1712455849836,-347.79885538,0.00023687,2]
[321720870,1712455861021,2466.47,0.00025,10]
[321720871,1712455861150,-2141.82549555,0.0002181,2]
[321720872,1712455861249,-43.7107244,0.0002181,2]
[321720873,1712455871160,-902.9666543,0.00021861,2]
[321720874,1712455871256,-18.4278909,0.00021861,2]
[321720875,1712455910087,-15530.0,0.0003,30]
[321720876,1712455932346,-3335.3362668,0.00021861,2]
[321720877,1712455932432,-68.06808708,0.00021861,2]
[321720878,1712455938937,-7826.66704621,0.00021861,2]
[321720879,1712455939011,-159.7278989,0.00021861,2]
[321720880,1712455942951,2178.95300094,0.00020993,2]
[321720881,1712455946018,-189.85185765,0.00021861,2]
[321720882,1712455946046,-150.3280734,0.00021861,2]
[321720883,1712455946120,-6.94244757,0.00021861,2]
[321720884,1712455952655,-1.0,0.0003,30]
[321720885,1712455952685,-58222.0,0.00031943,30]
[321720886,1712455957230,2178.95300094,0.00020993,2]
[321720887,1712455972911,-12000.0,0.00021861,2]
[321720888,1712455973000,-7126.86133468,0.00021861,2]
[321720889,1712455974961,2178.95300094,0.00020993,2]
[321720890,1712455980169,520.06772774,0.00020993,2]
[321720891,1712455988472,9200.24227705,0.00020993,2]
[321720892,1712455994955,635.63104464,0.00020993,2]
[321720893,1712455999170,-686.8412847,0.00022305,2]
[321720894,1712455999200,-15574.3407893,0.00022306,2]
[321720895,1712455999229,-185.47340529,0.00022324,2]
[321720896,1712455999257,-303.66680975,0.00022325,2]
[321720897,1712455999284,-240.54498844,0.00022325,2]
[321720898,1712455999312,-472.99713707,0.00022325,2]
[321720899,1712455999342,-250.0,0.00022326,2]
[321720900,1712455999369,-379.99757424,0.00022859,2]
[321720901,1712455999400,-3663.65357748,0.00023208,2]
[321720902,1712455999432,-1080.71339919,0.00023209,2]
[321720903,1712455999460,-300.0,0.00023324,2]
[321720904,1712455999488,-300.0,0.00023324,2]
[321720905,1712455999515,-2120.0697231,0.00023325,2]
[321720906,1712455999542,-472.28414068,0.00023325,2]
[321720907,1712455999568,-155.16543785,0.00023325,2]
[321720908,1712455999594,-157.14265956,0.00023325,2]
[321720909,1712455999619,-940.42073728,0.00023325,2]
[321720910,1712455999646,-692.73874326,0.00023325,2]
[321720911,1712455999672,-407.48657465,0.00023325,2]
[321720912,1712455999698,-188.00205076,0.00023325,2]
[321720913,1712455999723,-155.50486358,0.00023325,2]
[321720914,1712455999750,-22398.29172124,0.00023327,2]
[321720916,1712456062240,2000.0,0.00031,60]
[321720920,1712456110500,-303.66680975,0.00022502,2]
[321720921,1712456110541,-175.8402946,0.00022503,2]
[321720922,1712456110565,-751.77436066,0.00022846,2]
[321720923,1712456110594,-1058.10471583,0.00022846,2]
[321720924,1712456110642,-690.59149113,0.00022846,2]
[321720925,1712456110748,-2376.3305332,0.00022846,2]
[321720926,1712456110778,-523.42403048,0.00022846,2]
[321720927,1712456110803,-300.0,0.00023323,2]
[321720928,1712456110830,-300.0,0.00023323,2]
[321720929,1712456110855,-6905.19373773,0.00023324,2]
[321720930,1712456110879,-690.59149113,0.00023325,2]
[321720931,1712456110913,-683.88353482,0.00023326,2]
[321720932,1712456110944,-188.86128766,0.00023326,2]
[321720933,1712456110971,-185.35989335,0.00023326,2]
[321720934,1712456111000,-2058.98969379,0.00023327,2]
[321720935,1712456111044,-442.71858497,0.00023327,2]
[321720936,1712456111075,-1253.40846375,0.00023685,2]
[321720937,1712456111103,-240.40329424,0.00023685,2]
[321720938,1712456111134,-475.28059124,0.00023685,2]
[321720939,1712456111164,-407.23818397,0.00023685,2]
[321720940,1712456111192,-500.0,0.00023686,2]
[321720941,1712456111219,-500.0,0.00023686,2]
[321720942,1712456111247,-500.0,0.00023686,2]
[321720943,1712456111275,-1028.15,0.00023686,2]
[321720944,1712456111301,-154.8783092,0.00023686,2]
[321720945,1712456111326,-739.12,0.00023686,2]
[321720946,1712456111352,-1648.7411576,0.00023686,2]
[321720947,1712456111391,-2531.2088424,0.00023686,2]
[321720948,1712456111417,-1072.32,0.00023686,2]
[321720949,1712456111443,-152.20114462,0.00023687,2]
[321720950,1712456111467,-500.0,0.00023687,2]
[321720951,1712456111492,-500.0,0.00023687,2]
[321720952,1712456111517,-500.0,0.00023687,2]
[321720953,1712456111544,-3104.35,0.00023687,2]
[321720954,1712456111572,-677.09,0.00023687,2]
[321720955,1712456111598,-875.65,0.00023687,2]
[321720956,1712456111625,-1082.29,0.00023687,2]
[321720957,1712456111650,-879.26,0.00023687,2]
[321720958,1712456111676,-253.3411576,0.00023687,2]
[321720959,1712456111711,-246.6588424,0.00023687,2]
[321720960,1712456111739,-1136.45,0.00023687,2]
[321720961,1712456111765,-648.1,0.00023687,2]
[321720962,1712456111792,-500.0,0.00023687,2]
[321720963,1712456111820,-500.0,0.0002396,2]
[321720964,1712456111849,-500.0,0.0002396,2]
[321720965,1712456111877,-500.0,0.0002396,2]
[321720966,1712456111904,-1028.15,0.0002396,2]
[321720967,1712456111930,-739.12,0.0002396,2]
[321720968,1712456111957,-415.10101069,0.0002396,2]
[321720969,1712456112001,-2741.81137657,0.0002396,2]
[321720970,1712456131917,500.0,0.00023686,2]
[321720971,1712456143764,1000.0,0.000242,3]
[321720972,1712456150755,301.80813577,0.00023686,2]
[321720973,1712456176186,648.88,0.00023686,2]
[321720974,1712456193454,839.17,0.00023686,2]
[321720975,1712456194645,303.66680975,0.00023686,2]
[321720976,1712456204567,1037.19,0.00023686,2]
[321720977,1712456218028,842.63,0.00023686,2]
[321720978,1712456237934,568.80427352,0.00023686,2]
[321720979,1712456246424,1089.1,0.00023686,2]
[321720980,1712456257759,765.12,0.00023686,2]
[321720981,1712456268855,500.0,0.00023686,2]
[321720982,1712456295239,205.72909016,0.00023686,2]
[321720984,1712456300663,263.6069537,0.00023114,2]
[321720985,1712456324096,2000.0,0.00025,3]
[321720986,1712456330831,1795.38274009,0.00023114,2]
[321720987,1712456330857,6905.19373773,0.00023114,2]
[321720988,1712456330882,600.0,0.00023114,2]
[321720990,1712456440393,167.563537,0.00022757,2]
[321720991,1712456444724,2000.0,0.000319,60]
[321720995,1712456815158,5232.6615943,0.00022327,2]
[321720996,1712456815185,175.8402946,0.00022327,2]
[321721048,1712457038465,-155.00155002,0.0002232,2]
[321721049,1712457038474,-303.66680975,0.00022321,2]
[321721050,1712457038484,-3577.63424052,0.00022327,2]
[321721051,1712457038693,-2988.348716,0.00022327,2]
[321721052,1712457038705,-436.37237318,0.00022327,2]
[321721053,1712457038814,-300.0,0.00022994,2]
[321721054,1712457038824,-300.0,0.00022994,2]
[321721055,1712457038834,-2359.79594372,0.00022995,2]
[321721056,1712457038843,-1134.23872162,0.00022997,2]
[321721057,1712457038853,-168.10041267,0.00023002,2]
[321721058,1712457038862,-276.85883423,0.00023012,2]
[321721059,1712457038871,-26.28499858,0.00023102,2]
[321721060,1712457038883,-1126.80708879,0.00023102,2]
[321721061,1712457038895,-3656.9503115,0.00023102,2]
[321721125,1712457046418,-347.4,0.00023102,2]
[321721126,1712457047045,-2635.70415418,0.00023102,2]
[321721127,1712457047055,-2429.69353808,0.00023111,2]
[321721128,1712457047065,-704.79461599,0.00023112,2]
[321721129,1712457047074,-261.56042611,0.00023112,2]
[321721130,1712457047084,-279.96685494,0.00023112,2]
[321721131,1712457047093,-157.17576109,0.00023112,2]
[321721132,1712457047102,-338.99872432,0.00023486,2]
[321721133,1712457047112,-291.98939544,0.00023686,2]
[321721134,1712457047121,-500.0,0.0002396,2]
[321721135,1712457047131,-500.0,0.0002396,2]
[321721136,1712457047140,-2975.0,0.0002396,2]
[321721137,1712457047150,-1000.0,0.000242,2]
[321721138,1712457047159,-155.55836956,0.00024232,2]
[321721139,1712457047170,-565.80966564,0.00024232,2]
[321721140,1712457047179,-500.0,0.00024232,2]
[321721141,1712457047189,-927.61465526,0.00024233,2]
[321721142,1712457047198,-3874.25,0.00024233,2]
[321721143,1712457047208,-500.0,0.00024233,2]
[321721144,1712457047217,-500.0,0.00024233,2]
[321721145,1712457047226,-1027.64,0.00024233,2]
[321721146,1712457047237,-500.0,0.00024233,2]
[321721147,1712457047246,-500.0,0.00024233,2]
[321721148,1712457047256,-500.0,0.00024233,2]
[321721149,1712457047265,-500.0,0.00024233,2]
[321721150,1712457047275,-621.84,0.00024233,2]
[321721151,1712457047284,-804.2,0.00024233,2]
[321721152,1712457047294,-500.0,0.00024233,2]
[321721153,1712457047303,-942.47,0.00024233,2]
[321721154,1712457047312,-807.52,0.00024233,2]
[321721155,1712457047321,-1043.72,0.00024233,2]
[321721156,1712457047330,-733.24,0.00024233,2]
[321721157,1712457047343,-677.53,0.00024233,2]
[321721158,1712457047356,-500.0,0.00024233,2]
[321721159,1712457047369,-872.21659505,0.00024234,2]
[321721160,1712457047381,-362.55538513,0.00024234,2]
[321721161,1712457047394,-500.0,0.00024234,2]
[321721162,1712457047406,-2975.0,0.00024234,2]
[321721163,1712457047417,-500.0,0.00024254,2]
[321721164,1712457047431,-993.97,0.00024254,2]
[321721165,1712457047443,-324.22151245,0.00024254,2]
[321721166,1712457047454,-1668.39841151,0.00024255,2]
[321721167,1712457047465,-1614.75612294,0.00024255,2]
[321721168,1712457047477,-301.33948034,0.00024256,2]
[321721169,1712457047489,-161.93432049,0.00024256,2]
[321721170,1712457047501,-155.2344188,0.00024258,2]
[321721171,1712457047511,-219.58654766,0.00024258,2]
[321721172,1712457047522,-155.12099438,0.00024269,2]
[321721173,1712457047534,-245.44189028,0.00024506,2]
[321721174,1712457047545,-500.0,0.00024506,2]
[321721175,1712457047555,-3874.25,0.00024507,2]
[321721176,1712457047565,-1027.64,0.00024507,2]
[321721177,1712457047577,-500.0,0.00024507,2]
[321721178,1712457047589,-500.0,0.00024507,2]
[321721179,1712457047600,-500.0,0.00024507,2]
[321721180,1712457047611,-500.0,0.00024507,2]
[321721181,1712457047623,-621.84,0.00024507,2]
[321721182,1712457047636,-804.2,0.00024507,2]
[321721183,1712457047649,-500.0,0.00024507,2]
[321721184,1712457047661,-942.47,0.00024507,2]
[321721185,1712457047672,-807.52,0.00024507,2]
[321721186,1712457047682,-1043.72,0.00024507,2]
[321721187,1712457047692,-733.24,0.00024507,2]
[321721188,1712457047701,-677.53,0.00024507,2]
[321721189,1712457047715,-199.04244253,0.00024507,2]
[321721190,1712457047727,-500.0,0.00024508,2]
[321721191,1712457047738,-2975.0,0.00024508,2]
[321721192,1712457047749,-993.97,0.00024528,2]
[321721193,1712457047761,-380.0,0.00024658,2]
[321721194,1712457047772,-200.0,0.00024658,2]
[321721195,1712457047783,-500.0,0.0002478,2]
[321721196,1712457047793,-3874.25,0.00024781,2]
[321721197,1712457047803,-1027.64,0.00024781,2]
[321721198,1712457047814,-500.0,0.00024781,2]
[321721199,1712457047826,-500.0,0.00024781,2]
[321721200,1712457047836,-609.74791805,0.00024781,2]
[321721201,1712457047847,-500.0,0.00024781,2]
[321721202,1712457047857,-621.84,0.00024781,2]
[321721203,1712457047869,-804.2,0.00024781,2]
[321721204,1712457047880,-500.0,0.00024781,2]
[321721205,1712457047891,-942.47,0.00024781,2]
[321721206,1712457047903,-807.52,0.00024781,2]
[321721207,1712457047914,-1043.72,0.00024781,2]
[321721208,1712457047926,-733.24,0.00024781,2]
[321721209,1712457047937,-677.53,0.00024781,2]
[321721210,1712457047946,-500.0,0.00024782,2]
[321721211,1712457047956,-500.0,0.00024782,2]
[321721212,1712457047966,-2975.0,0.00024782,2]
[321721213,1712457047976,-993.97,0.00024802,2]
[321721214,1712457047986,-154.0,0.00024932,2]
[321721215,1712457047997,-420.0,0.00024961,2]
[321721216,1712457048009,-1011.86509277,0.00025,2]
[321721217,1712457048020,-154.0,0.00025,2]
[321721218,1712457048030,-500.0,0.00025054,2]
[321721219,1712457048042,-3874.25,0.00025055,2]
[321721220,1712457048052,-1027.64,0.00025055,2]
[321721221,1712457048063,-500.0,0.00025055,2]
[321721222,1712457048074,-500.0,0.00025055,2]
[321721223,1712457048085,-500.0,0.00025055,2]
[321721224,1712457048095,-621.84,0.00025055,2]
[321721225,1712457048106,-804.2,0.00025055,2]
[321721226,1712457048117,-500.0,0.00025055,2]
[321721227,1712457048127,-942.47,0.00025055,2]
[321721228,1712457048138,-807.52,0.00025055,2]
[321721229,1712457048148,-1043.72,0.00025055,2]
[321721230,1712457048159,-733.24,0.00025055,2]
[321721231,1712457048171,-677.53,0.00025055,2]
[321721232,1712457048181,-500.0,0.00025056,2]
[321721233,1712457048191,-151.0,0.00025056,2]
[321721234,1712457048202,-2975.0,0.00025056,2]
[321721235,1712457048212,-190.097881,0.00025056,2]
[321721236,1712457048223,-993.97,0.00025076,2]
[321721237,1712457048233,-420.0,0.00025293,2]
[321721238,1712457048244,-155.00775039,0.00025315,2]
[321721239,1712457048254,-524.89663455,0.00025316,2]
[321721240,1712457048265,-29141.57367952,0.00025317,2]
[321721241,1712457048275,-275.972274,0.00025317,2]
[321721242,1712457048285,-259.419774,0.00025317,2]
[321721243,1712457048296,-184.178033,0.00025317,2]
[321721244,1712457048306,-151.0,0.00025317,2]
[321721245,1712457048316,-202.712884,0.00025317,2]
[321721246,1712457048326,-500.0,0.00025328,2]
[321721247,1712457048336,-3874.25,0.00025329,2]
[321721248,1712457048346,-1027.64,0.00025329,2]
[321721249,1712457048356,-500.0,0.00025329,2]
[321721250,1712457048366,-500.0,0.00025329,2]
[321721251,1712457048376,-500.0,0.00025329,2]
[321721252,1712457048388,-621.84,0.00025329,2]
[321721253,1712457048398,-804.2,0.00025329,2]
[321721254,1712457048409,-500.0,0.00025329,2]
[321721255,1712457048423,-942.47,0.00025329,2]
[321721256,1712457048434,-807.52,0.00025329,2]
[321721257,1712457048444,-1043.72,0.00025329,2]
[321721258,1712457048453,-733.24,0.00025329,2]
[321721259,1712457048463,-677.53,0.00025329,2]
[321721260,1712457048472,-500.0,0.0002533,2]
[321721261,1712457048482,-2975.0,0.0002533,2]
[321721262,1712457048492,-993.97,0.0002535,2]
[321721263,1712457048502,-500.0,0.000254,2]
[321721264,1712457048619,-500.0,0.00025602,2]
[321721265,1712457048631,-3874.25,0.00025603,2]
[321721266,1712457048640,-1027.64,0.00025603,2]
[321721267,1712457048650,-500.0,0.00025603,2]
[321721268,1712457048659,-410.72097161,0.00025603,2]
[321721269,1712457048669,-500.0,0.00025603,2]
[321721270,1712457048678,-621.84,0.00025603,2]
[321721271,1712457048687,-804.2,0.00025603,2]
[321721272,1712457048696,-500.0,0.00025603,2]
[321721273,1712457048706,-942.47,0.00025603,2]
[321721274,1712457048715,-807.52,0.00025603,2]
[321721275,1712457048725,-1043.72,0.00025603,2]
[321721276,1712457048734,-733.24,0.00025603,2]
[321721277,1712457048743,-677.53,0.00025603,2]
[321721278,1712457048752,-500.0,0.00025604,2]
[321721279,1712457048762,-151.0,0.00025604,2]
[321721280,1712457048771,-2975.0,0.00025604,2]
[321721281,1712457048780,-993.97,0.00025624,2]
[321721282,1712457048789,-14418.21696669,0.00025677,2]
[321721283,1712457048799,-1500.0,0.00025778,2]
[321721284,1712457048808,-500.0,0.00025876,2]
[321721285,1712457048817,-3874.25,0.00025877,2]
[321721286,1712457048827,-1027.64,0.00025877,2]
[321721287,1712457048837,-500.0,0.00025877,2]
[321721288,1712457048846,-500.0,0.00025877,2]
[321721289,1712457048856,-621.84,0.00025877,2]
[321721290,1712457048866,-804.2,0.00025877,2]
[321721291,1712457048875,-500.0,0.00025877,2]
[321721292,1712457048885,-942.47,0.00025877,2]
[321721293,1712457048894,-807.52,0.00025877,2]
[321721294,1712457048904,-1043.72,0.00025877,2]
[321721295,1712457048913,-733.24,0.00025877,2]
[321721296,1712457048922,-677.53,0.00025877,2]
[321721297,1712457048931,-500.0,0.00025878,2]
[321721298,1712457048940,-151.0,0.00025878,2]
[321721299,1712457048950,-2975.0,0.00025878,2]
[321721300,1712457048959,-154.0,0.0002589,2]
[321721301,1712457048969,-202.5995394,0.0002589,2]
[321721302,1712457048979,-202.5995394,0.0002589,2]
[321721303,1712457048988,-202.5995394,0.0002589,2]
[321721304,1712457048998,-993.97,0.00025898,2]
[321721305,1712457049007,-5443.34472786,0.000259,2]
[321721306,1712457049082,-1399.20860192,0.000259,2]
[321721307,1712457049092,-500.0,0.00026,2]
[321721308,1712457049101,-153.0,0.00026027,2]
[321721309,1712457049110,-202.5995394,0.00026027,2]
[321721310,1712457049120,-153.0,0.00026027,2]
[321721311,1712457049130,-202.5995394,0.00026027,2]
[321721312,1712457049139,-153.0,0.00026027,2]
[321721313,1712457049149,-363.6116347,0.0002615,2]
[321721314,1712457049158,-3874.25,0.00026151,2]
[321721315,1712457049169,-1027.64,0.00026151,2]
[321721316,1712457049178,-500.0,0.00026151,2]
[321721317,1712457049187,-500.0,0.00026151,2]
[321721318,1712457049196,-621.84,0.00026151,2]
[321721319,1712457049205,-804.2,0.00026151,2]
[321721320,1712457049215,-500.0,0.00026151,2]
[321721321,1712457049224,-942.47,0.00026151,2]
[321721322,1712457049233,-807.52,0.00026151,2]
[321721323,1712457049242,-1043.72,0.00026151,2]
[321721324,1712457049251,-733.24,0.00026151,2]
[321721325,1712457049261,-677.53,0.00026151,2]
[321721326,1712457049271,-500.0,0.00026152,2]
[321721327,1712457049280,-151.0,0.00026152,2]
[321721328,1712457049289,-2975.0,0.00026152,2]
[321721329,1712457049298,-993.97,0.00026172,2]
[321721330,1712457049308,-296.20932511,0.00026218,2]
[321721331,1712457049317,-476.0,0.000264,2]
[321721332,1712457049326,-849.90337876,0.00026425,2]
[321721333,1712457049340,-3024.34662124,0.00026425,2]
[321721334,1712457049349,-1027.64,0.00026425,2]
[321721335,1712457049358,-513.66033619,0.00026425,2]
[321721336,1712457049367,-500.0,0.00026425,2]
[321721337,1712457049376,-621.84,0.00026425,2]
[321721338,1712457049385,-804.2,0.00026425,2]
[321721339,1712457049394,-500.0,0.00026425,2]
[321721340,1712457049404,-942.47,0.00026425,2]
[321721341,1712457049414,-807.52,0.00026425,2]
[321721342,1712457049428,-1043.72,0.00026425,2]
[321721343,1712457049436,-733.24,0.00026425,2]
[321721344,1712457049445,-677.53,0.00026425,2]
[321721345,1712457049454,-500.0,0.00026426,2]
[321721346,1712457049463,-2975.0,0.00026426,2]
[321721347,1712457049472,-993.97,0.00026446,2]
[321721348,1712457049481,-570.13,0.00026456,2]
[321721349,1712457049490,-3874.25,0.00026699,2]
[321721350,1712457049499,-1027.64,0.00026699,2]
[321721351,1712457049509,-500.0,0.00026699,2]
[321721352,1712457049518,-621.84,0.00026699,2]
[321721353,1712457049526,-804.2,0.00026699,2]
[321721354,1712457049535,-500.0,0.00026699,2]
[321721355,1712457049545,-942.47,0.00026699,2]
[321721356,1712457049554,-807.52,0.00026699,2]
[321721357,1712457049564,-1043.72,0.00026699,2]
[321721358,1712457049573,-733.24,0.00026699,2]
[321721359,1712457049582,-677.53,0.00026699,2]
[321721360,1712457049591,-500.0,0.000267,2]
[321721361,1712457049600,-151.0,0.000267,2]
[321721362,1712457049609,-2975.0,0.000267,2]
[321721363,1712457049618,-202.5995394,0.00026712,2]
[321721364,1712457049627,-202.5995394,0.00026712,2]
[321721365,1712457049636,-207.5267269,0.00026712,2]
[321721366,1712457049645,-202.5995394,0.00026712,2]
[321721367,1712457049654,-202.6555302,0.00026712,2]